fUSD/lending_fUSD_20260605
["ID","MTS","AMOUNT","RATE_DAILY","PERIOD"]
[424149998,1780612256000,-151.0,0.000349,7]
[424149997,1780612256000,-187.729829,0.000349,7]
[424150000,1780612256000,-1541.829306,0.000349,7]
[424149999,1780612256000,-1541.829306,0.000349,7]
[424150002,1780612256000,-1541.829306,0.000349,7]
[424150001,1780612256000,-1541.829306,0.000349,7]
[424150003,1780612256000,-300.0,0.000349,12]
[424150004,1780612256000,-151.0,0.000349,7]
[424150005,1780612256000,-151.0,0.000349,7]
[424150008,1780612256000,-834.811559,0.000349,7]
[424150006,1780612256000,-156.494329,0.000349,7]
[424150007,1780612256000,-834.811559,0.000349,7]
[424150009,1780612256000,-834.811559,0.000349,7]
[424150010,1780612256000,-834.811559,0.000349,7]
[424149958,1780612256000,-166.0,0.00034636,7]
[424149987,1780612256000,-1500.0,0.000349,7]
[424149986,1780612256000,-194645.15584815,0.000349,3]
[424149939,1780612256000,-350.0,0.00034469,2]
[424149978,1780612256000,-3313.0,0.000348,7]
[424149984,1780612256000,-186.04151345,0.00034889,11]
[424149949,1780612256000,-745.65223615,0.00034538,2]
[424149959,1780612256000,-264.95129955,0.00034648,2]
[424149963,1780612256000,-152.0,0.00034668,7]
[424149964,1780612256000,-153.0,0.00034668,7]
[424149962,1780612256000,-280.61209394,0.00034668,7]
[424149961,1780612256000,-801.85129954,0.00034648,2]
[424149960,1780612256000,-151.0,0.00034648,2]
[424149967,1780612256000,-150.0,0.00034753,2]
[424149965,1780612256000,-151.0,0.00034703,2]
[424149966,1780612256000,-831.51979762,0.00034703,2]
[424149968,1780612256000,-151.0,0.00034758,2]
[424149969,1780612256000,-862.28603014,0.00034758,2]
[424149971,1780612256000,-2530.66729413,0.00034795,2]
[424149977,1780612256000,-150.0,0.00034795,2]
[424149970,1780612256000,-1500.0,0.00034795,2]
[424149979,1780612256000,-151.0,0.00034813,2]
[424149974,1780612256000,-150.0,0.00034795,2]
[424149975,1780612256000,-150.0,0.00034795,7]
[424149983,1780612256000,-437.39384537,0.00034882,7]
[424149976,1780612256000,-216.05485521,0.00034795,2]
[424149972,1780612256000,-150.0,0.00034795,2]
[424149982,1780612256000,-927.27566594,0.00034868,2]
[424149980,1780612256000,-894.19061325,0.00034813,2]
[424149973,1780612256000,-150.0,0.00034795,2]
[424149981,1780612256000,-151.0,0.00034868,2]
[424150051,1780612257000,-301.27126872,0.00034933,2]
[424150055,1780612257000,-300.0,0.00034933,2]
[424150048,1780612257000,-302.47682808,0.00034933,2]
[424150050,1780612257000,-550.84087796,0.00034933,2]
[424150045,1780612257000,-535.22980368,0.00034933,2]
[424150053,1780612257000,-300.0,0.00034933,2]
[424150049,1780612257000,-425.10253259,0.00034933,2]
[424150052,1780612257000,-301.00404057,0.00034933,2]
[424150047,1780612257000,-300.0,0.00034933,2]
[424150043,1780612257000,-300.0,0.00034933,2]
[424150065,1780612257000,-310.31256806,0.00034933,2]
[424150046,1780612257000,-727.72406262,0.00034933,2]
[424150054,1780612257000,-300.0,0.00034933,2]
[424150068,1780612257000,-300.0,0.00034933,2]
[424150057,1780612257000,-1079.85959652,0.00034933,2]
[424150066,1780612257000,-300.0,0.00034933,2]
[424150062,1780612257000,-951.1616413,0.00034933,2]
[424150059,1780612257000,-344.73760311,0.00034933,2]
[424150060,1780612257000,-528.08660383,0.00034933,2]
[424150056,1780612257000,-300.0,0.00034933,2]
[424150058,1780612257000,-300.0,0.00034933,2]
[424150063,1780612257000,-1801.30324439,0.00034933,2]
[424150064,1780612257000,-300.0,0.00034933,2]
[424150067,1780612257000,-1637.36858291,0.00034933,2]
[424150044,1780612257000,-1069.39140751,0.00034933,2]
[424150069,1780612257000,-300.0,0.00034933,2]
[424150076,1780612257000,-626.51557854,0.00034933,2]
[424150073,1780612257000,-596.79641864,0.00034933,2]
[424150061,1780612257000,-866.34655626,0.00034933,2]
[424150042,1780612257000,-3206.33486172,0.00034933,2]
[424150038,1780612257000,-300.62597199,0.00034933,2]
[424150033,1780612257000,-300.0,0.00034933,2]
[424150078,1780612257000,-452.9387939,0.00034933,2]
[424150015,1780612257000,-557.281833,0.000349,7]
[424150013,1780612257000,-151.0,0.000349,7]
[424150012,1780612257000,-557.281833,0.000349,7]
[424150011,1780612257000,-233.93432443,0.000349,2]
[424150017,1780612257000,-749.673451,0.000349,7]
[424150018,1780612257000,-749.673451,0.000349,7]
[424150022,1780612257000,-5614.8027,0.00034908,2]
[424150016,1780612257000,-557.281833,0.000349,7]
[424150020,1780612257000,-749.673451,0.000349,7]
[424150027,1780612257000,-320.3648248,0.00034915,2]
[424150024,1780612257000,-215.3710052,0.00034915,2]
[424150019,1780612257000,-749.673451,0.000349,7]
[424150036,1780612257000,-340.92151356,0.00034933,2]
[424150025,1780612257000,-366.12933707,0.00034915,2]
[424150028,1780612257000,-936.0,0.00034921,3]
[424150023,1780612257000,-803.528,0.00034908,2]
[424150026,1780612257000,-659.03280673,0.00034915,2]
[424150029,1780612257000,-522.63397015,0.00034921,2]
[424150034,1780612257000,-300.0,0.00034933,2]
[424150039,1780612257000,-605.83002711,0.00034933,2]
[424150031,1780612257000,-151.0,0.00034923,2]
[424150040,1780612257000,-300.0,0.00034933,2]
[424150030,1780612257000,-203.84771264,0.00034922,30]
[424150035,1780612257000,-493.81396627,0.00034933,2]
[424150032,1780612257000,-961.58486558,0.00034923,2]
[424150041,1780612257000,-300.0,0.00034933,2]
[424150037,1780612257000,-300.0,0.00034933,2]
[424150021,1780612257000,-3905.5564,0.00034908,2]
[424150014,1780612257000,-557.281833,0.000349,7]
[424150071,1780612257000,-595.33490838,0.00034933,2]
[424150074,1780612257000,-512.46109187,0.00034933,2]
[424150107,1780612257000,-300.62597199,0.00034933,2]
[424150108,1780612257000,-605.83002711,0.00034933,2]
[424150109,1780612257000,-300.0,0.00034933,2]
[424150111,1780612257000,-300.0,0.00034933,2]
[424150110,1780612257000,-300.0,0.00034933,2]
[424150115,1780612257000,-535.22980368,0.00034933,2]
[424150113,1780612257000,-300.0,0.00034933,2]
[424150114,1780612257000,-1069.39140751,0.00034933,2]
[424150112,1780612257000,-3206.33486172,0.00034933,2]
[424150118,1780612257000,-302.47682808,0.00034933,2]
[424150121,1780612257000,-301.27126872,0.00034933,2]
[424150126,1780612257000,-300.0,0.00034933,2]
[424150120,1780612257000,-550.84087796,0.00034933,2]
[424150105,1780612257000,-300.0,0.00034933,2]
[424150125,1780612257000,-300.0,0.00034933,2]
[424150122,1780612257000,-524.9325816,0.00034933,2]
[424150124,1780612257000,-300.0,0.00034933,2]
[424150129,1780612257000,-1079.85959652,0.00034933,2]
[424150119,1780612257000,-300.0,0.00034933,2]
[424150127,1780612257000,-300.0,0.00034933,2]
[424150128,1780612257000,-300.0,0.00034933,2]
[424150130,1780612257000,-300.0,0.00034933,2]
[424150132,1780612257000,-528.08660383,0.00034933,2]
[424150133,1780612257000,-300.0,0.00034933,2]
[424150131,1780612257000,-344.73760311,0.00034933,2]
[424150136,1780612257000,-866.34655626,0.00034933,2]
[424150135,1780612257000,-300.63637421,0.00034933,2]
[424150134,1780612257000,-300.76010964,0.00034933,2]
[424150123,1780612257000,-300.0,0.00034933,2]
[424150116,1780612257000,-727.72406262,0.00034933,2]
[424150077,1780612257000,-300.0,0.00034933,2]
[424150106,1780612257000,-300.0,0.00034933,2]
[424150072,1780612257000,-300.0,0.00034933,2]
[424150070,1780612257000,-300.0,0.00034933,2]
[424150075,1780612257000,-300.0,0.00034933,2]
[424150080,1780612257000,-300.0,0.00034933,2]
[424150090,1780612257000,-300.0,0.00034933,2]
[424150091,1780612257000,-300.0,0.00034933,2]
[424150079,1780612257000,-300.0,0.00034933,2]
[424150084,1780612257000,-300.0,0.00034933,2]
[424150117,1780612257000,-300.0,0.00034933,2]
[424150083,1780612257000,-300.0,0.00034933,2]
[424150081,1780612257000,-300.0,0.00034933,2]
[424150087,1780612257000,-300.0,0.00034933,2]
[424150088,1780612257000,-300.0,0.00034933,2]
[424150086,1780612257000,-310.56504798,0.00034933,2]
[424150085,1780612257000,-485.24111317,0.00034933,2]
[424150089,1780612257000,-575.82551977,0.00034933,2]
[424150082,1780612257000,-300.0,0.00034933,2]
[424150097,1780612257000,-300.0,0.00034933,2]
[424150101,1780612257000,-300.0,0.00034933,2]
[424150098,1780612257000,-300.0,0.00034933,2]
[424150100,1780612257000,-300.0,0.00034933,2]
[424150099,1780612257000,-300.0,0.00034933,2]
[424150102,1780612257000,-300.0,0.00034933,2]
[424150096,1780612257000,-300.0,0.00034933,2]
[424150095,1780612257000,-396.18263436,0.00034933,2]
[424150094,1780612257000,-300.0,0.00034933,2]
[424150103,1780612257000,-300.0,0.00034933,2]
[424150092,1780612257000,-300.0,0.00034933,2]
[424150093,1780612257000,-1097.41045792,0.00034933,2]
[424150104,1780612257000,-493.81396627,0.00034933,2]
[424150181,1780612258000,-300.62597199,0.00034933,2]
[424150180,1780612258000,-300.0,0.00034933,2]
[424150176,1780612258000,-300.0,0.00034933,2]
[424150177,1780612258000,-493.81396627,0.00034933,2]
[424150175,1780612258000,-300.0,0.00034933,2]
[424150179,1780612258000,-300.0,0.00034933,2]
[424150173,1780612258000,-300.0,0.00034933,2]
[424150174,1780612258000,-300.0,0.00034933,2]
[424150170,1780612258000,-300.0,0.00034933,2]
[424150171,1780612258000,-300.0,0.00034933,2]
[424150169,1780612258000,-300.0,0.00034933,2]
[424150172,1780612258000,-300.0,0.00034933,2]
[424150178,1780612258000,-300.0,0.00034933,2]
[424150205,1780612258000,-528.08660383,0.00034933,2]
[424150193,1780612258000,-474.89746741,0.00034933,2]
[424150194,1780612258000,-398.31824409,0.00034933,2]
[424150182,1780612258000,-605.83002711,0.00034933,2]
[424150192,1780612258000,-302.47682808,0.00034933,2]
[424150184,1780612258000,-300.0,0.00034933,2]
[424150188,1780612258000,-1069.39140751,0.00034933,2]
[424150189,1780612258000,-535.22980368,0.00034933,2]
[424150185,1780612258000,-300.0,0.00034933,2]
[424150186,1780612258000,-3206.33486172,0.00034933,2]
[424150187,1780612258000,-300.0,0.00034933,2]
[424150191,1780612258000,-300.0,0.00034933,2]
[424150190,1780612258000,-727.72406262,0.00034933,2]
[424150196,1780612258000,-300.0,0.00034933,2]
[424150165,1780612258000,-300.0,0.00034933,2]
[424150183,1780612258000,-300.0,0.00034933,2]
[424150166,1780612258000,-300.0,0.00034933,2]
[424150150,1780612258000,-512.46109187,0.00034933,2]
[424150164,1780612258000,-300.0,0.00034933,2]
[424150204,1780612258000,-344.73760311,0.00034933,2]
[424150142,1780612258000,-300.0,0.00034933,2]
[424150143,1780612258000,-1637.36858291,0.00034933,2]
[424150138,1780612258000,-1801.30324439,0.00034933,2]
[424150137,1780612258000,-951.1616413,0.00034933,2]
[424150140,1780612258000,-310.31256806,0.00034933,2]
[424150139,1780612258000,-300.0,0.00034933,2]
[424150141,1780612258000,-300.0,0.00034933,2]
[424150146,1780612258000,-300.0,0.00034933,2]
[424150154,1780612258000,-452.9387939,0.00034933,2]
[424150149,1780612258000,-300.0,0.00034933,2]
[424150144,1780612258000,-300.0,0.00034933,2]
[424150151,1780612258000,-300.0,0.00034933,2]
[424150160,1780612258000,-300.0,0.00034933,2]
[424150145,1780612258000,-300.0,0.00034933,2]
[424150155,1780612258000,-300.0,0.00034933,2]
[424150147,1780612258000,-595.33490838,0.00034933,2]
[424150153,1780612258000,-300.0,0.00034933,2]
[424150148,1780612258000,-300.0,0.00034933,2]
[424150157,1780612258000,-300.0,0.00034933,2]
[424150158,1780612258000,-300.0,0.00034933,2]
[424150159,1780612258000,-300.0,0.00034933,2]
[424150167,1780612258000,-300.0,0.00034933,2]
[424150168,1780612258000,-1097.41045792,0.00034933,2]
[424150156,1780612258000,-300.0,0.00034933,2]
[424150161,1780612258000,-485.24111317,0.00034933,2]
[424150163,1780612258000,-300.0,0.00034933,2]
[424150162,1780612258000,-310.56504798,0.00034933,2]
[424150152,1780612258000,-626.51557854,0.00034933,2]
[424150206,1780612258000,-300.0,0.00034933,2]
[424150207,1780612258000,-300.0,0.00034933,2]
[424150261,1780612258000,-300.0,0.00034933,2]
[424150234,1780612258000,-485.24111317,0.00034933,2]
[424150236,1780612258000,-300.0,0.00034933,2]
[424150237,1780612258000,-300.64704916,0.00034933,2]
[424150246,1780612258000,-300.0,0.00034933,2]
[424150240,1780612258000,-300.00000002,0.00034933,2]
[424150245,1780612258000,-300.0,0.00034933,2]
[424150239,1780612258000,-300.00000001,0.00034933,2]
[424150235,1780612258000,-310.56504798,0.00034933,2]
[424150238,1780612258000,-300.0,0.00034933,2]
[424150244,1780612258000,-300.0,0.00034933,2]
[424150242,1780612258000,-300.0,0.00034933,2]
[424150241,1780612258000,-1097.41045792,0.00034933,2]
[424150248,1780612258000,-300.0,0.00034933,2]
[424150256,1780612258000,-605.83002711,0.00034933,2]
[424150258,1780612258000,-300.0,0.00034933,2]
[424150257,1780612258000,-300.0,0.00034933,2]
[424150259,1780612258000,-300.0,0.00034933,2]
[424150247,1780612258000,-300.0,0.00034933,2]
[424150249,1780612258000,-300.0,0.00034933,2]
[424150250,1780612258000,-300.0,0.00034933,2]
[424150255,1780612258000,-300.0,0.00034933,2]
[424150253,1780612258000,-300.0,0.00034933,2]
[424150254,1780612258000,-300.0,0.00034933,2]
[424150251,1780612258000,-493.81396627,0.00034933,2]
[424150252,1780612258000,-300.0,0.00034933,2]
[424150260,1780612258000,-3206.33486172,0.00034933,2]
[424150262,1780612258000,-1069.39140751,0.00034933,2]
[424150263,1780612258000,-535.22980368,0.00034933,2]
[424150200,1780612258000,-300.0,0.00034933,2]
[424150229,1780612258000,-300.0,0.00034933,2]
[424150228,1780612258000,-300.0,0.00034933,2]
[424150243,1780612258000,-300.0,0.00034933,2]
[424150227,1780612258000,-452.9387939,0.00034933,2]
[424150231,1780612258000,-300.0,0.00034933,2]
[424150202,1780612258000,-1079.85959652,0.00034933,2]
[424150198,1780612258000,-300.0,0.00034933,2]
[424150201,1780612258000,-300.0,0.00034933,2]
[424150195,1780612258000,-301.27126872,0.00034933,2]
[424150199,1780612258000,-300.0,0.00034933,2]
[424150203,1780612258000,-300.0,0.00034933,2]
[424150208,1780612258000,-866.34655626,0.00034933,2]
[424150209,1780612258000,-951.1616413,0.00034933,2]
[424150214,1780612258000,-300.0,0.00034933,2]
[424150211,1780612258000,-300.0,0.00034933,2]
[424150217,1780612258000,-300.46093737,0.00034933,2]
[424150215,1780612258000,-300.0,0.00034933,2]
[424150218,1780612258000,-300.0,0.00034933,2]
[424150216,1780612258000,-1637.36858291,0.00034933,2]
[424150197,1780612258000,-300.0,0.00034933,2]
[424150213,1780612258000,-310.31256806,0.00034933,2]
[424150212,1780612258000,-300.0,0.00034933,2]
[424150226,1780612258000,-300.0,0.00034933,2]
[424150225,1780612258000,-626.51557854,0.00034933,2]
[424150223,1780612258000,-512.46109187,0.00034933,2]
[424150221,1780612258000,-300.0,0.00034933,2]
[424150233,1780612258000,-300.0,0.00034933,2]
[424150230,1780612258000,-300.0,0.00034933,2]
[424150222,1780612258000,-300.0,0.00034933,2]
[424150232,1780612258000,-300.0,0.00034933,2]
[424150220,1780612258000,-595.33490838,0.00034933,2]
[424150210,1780612258000,-1801.30324439,0.00034933,2]
[424150219,1780612258000,-300.0,0.00034933,2]
[424150224,1780612258000,-300.0,0.00034933,2]
[424150307,1780612259000,-300.0,0.00034933,2]
[424150306,1780612259000,-300.0,0.00034933,2]
[424150309,1780612259000,-300.0,0.00034933,2]
[424150303,1780612259000,-452.9387939,0.00034933,2]
[424150291,1780612259000,-300.0,0.00034933,2]
[424150302,1780612259000,-300.0,0.00034933,2]
[424150311,1780612259000,-151.0,0.00034933,7]
[424150312,1780612259000,-719.0682452,0.00034942,60]
[424150301,1780612259000,-626.51557854,0.00034933,2]
[424150294,1780612259000,-300.0,0.00034933,2]
[424150289,1780612259000,-300.0,0.00034933,2]
[424150308,1780612259000,-300.42322706,0.00034933,2]
[424150300,1780612259000,-300.0,0.00034933,2]
[424150304,1780612259000,-300.0,0.00034933,2]
[424150319,1780612259000,-924.8490197,0.00034942,60]
[424150310,1780612259000,-485.24111317,0.00034933,2]
[424150313,1780612259000,-967.8691092,0.00034942,60]
[424150315,1780612259000,-351.7175535,0.00034942,60]
[424150316,1780612259000,-500.0,0.00034942,60]
[424150323,1780612259000,-500.0,0.00034942,60]
[424150318,1780612259000,-500.0,0.00034942,60]
[424150314,1780612259000,-151.8478076,0.00034942,60]
[424150324,1780612259000,-500.0,0.00034942,60]
[424150322,1780612259000,-554.4033122,0.00034942,60]
[424150317,1780612259000,-891.1008483,0.00034942,60]
[424150321,1780612259000,-162.5045091,0.00034942,60]
[424150320,1780612259000,-562.9797939,0.00034942,60]
[424150286,1780612259000,-1801.30324439,0.00034933,2]
[424150305,1780612259000,-300.0,0.00034933,2]
[424150292,1780612259000,-536.44959551,0.00034933,2]
[424150326,1780612259000,-639.6614553,0.00034942,60]
[424150288,1780612259000,-300.0,0.00034933,2]
[424150264,1780612259000,-727.72406262,0.00034933,2]
[424150265,1780612259000,-300.0,0.00034933,2]
[424150271,1780612259000,-300.0,0.00034933,2]
[424150266,1780612259000,-302.47682808,0.00034933,2]
[424150270,1780612259000,-300.0,0.00034933,2]
[424150269,1780612259000,-301.27126872,0.00034933,2]
[424150272,1780612259000,-300.0,0.00034933,2]
[424150267,1780612259000,-425.10253259,0.00034933,2]
[424150268,1780612259000,-300.0,0.00034933,2]
[424150274,1780612259000,-300.0,0.00034933,2]
[424150282,1780612259000,-599.36362579,0.00034933,2]
[424150284,1780612259000,-866.34655626,0.00034933,2]
[424150273,1780612259000,-300.0,0.00034933,2]
[424150283,1780612259000,-300.0,0.00034933,2]
[424150285,1780612259000,-951.1616413,0.00034933,2]
[424150275,1780612259000,-300.0,0.00034933,2]
[424150280,1780612259000,-528.08660383,0.00034933,2]
[424150278,1780612259000,-300.0,0.00034933,2]
[424150276,1780612259000,-300.0,0.00034933,2]
[424150277,1780612259000,-1079.85959652,0.00034933,2]
[424150279,1780612259000,-344.73760311,0.00034933,2]
[424150281,1780612259000,-300.0,0.00034933,2]
[424150297,1780612259000,-300.0,0.00034933,2]
[424150299,1780612259000,-512.46109187,0.00034933,2]
[424150287,1780612259000,-300.0,0.00034933,2]
[424150298,1780612259000,-300.0,0.00034933,2]
[424150293,1780612259000,-1637.36858291,0.00034933,2]
[424150295,1780612259000,-300.0,0.00034933,2]
[424150296,1780612259000,-595.33490838,0.00034933,2]
[424150290,1780612259000,-310.31256806,0.00034933,2]
[424150325,1780612259000,-890.4991091,0.00034942,60]
[424150388,1780612259000,-2393.0,0.0003538,30]
[424150334,1780612259000,-200.0,0.00034976,2]
[424150359,1780612259000,-302.25861,0.000352,13]
[424150363,1780612259000,-5000.0,0.0003524,2]
[424150364,1780612259000,-5000.0,0.0003524,2]
[424150366,1780612259000,-5000.0,0.0003524,2]
[424150365,1780612259000,-5000.0,0.0003524,2]
[424150374,1780612259000,-3905.5564,0.00035282,2]
[424150375,1780612259000,-5614.8027,0.00035282,2]
[424150373,1780612259000,-1301.27390566,0.00035263,2]
[424150371,1780612259000,-1367.63597246,0.00035263,2]
[424150369,1780612259000,-154.79996153,0.00035251,30]
[424150367,1780612259000,-481.9468149,0.0003525,3]
[424150368,1780612259000,-150.60915763,0.0003525,3]
[424150370,1780612259000,-1306.29674353,0.00035263,2]
[424150358,1780612259000,-5614.8027,0.00035158,2]
[424150377,1780612259000,-2699.5,0.00035376,120]
[424150385,1780612259000,-2842.0,0.0003538,30]
[424150387,1780612259000,-377.0,0.0003538,30]
[424150386,1780612259000,-443.0,0.0003538,30]
[424150381,1780612259000,-1633.0,0.00035379,30]
[424150379,1780612259000,-761.0,0.00035379,30]
[424150376,1780612259000,-500.0,0.00035302,120]
[424150378,1780612259000,-507.0,0.00035379,30]
[424150380,1780612259000,-269.0,0.00035379,30]
[424150382,1780612259000,-1934.0,0.0003538,30]
[424150383,1780612259000,-654.0,0.0003538,30]
[424150389,1780612259000,-13263.49,0.00035383,30]
[424150390,1780612259000,-557.0,0.00035401,30]
[424150336,1780612259000,-217.15233878,0.00034976,2]
[424150384,1780612259000,-387.0,0.0003538,30]
[424150357,1780612259000,-3905.5564,0.00035158,2]
[424150372,1780612259000,-1370.97578307,0.00035263,2]
[424150361,1780612259000,-500.0,0.00035233,2]
[424150360,1780612259000,-208.1,0.000352,17]
[424150337,1780612259000,-997.16350561,0.00034978,2]
[424150327,1780612259000,-4932.1,0.00034955,2]
[424150329,1780612259000,-181.08010149,0.00034976,2]
[424150330,1780612259000,-771.01748644,0.00034976,2]
[424150328,1780612259000,-290.26104002,0.00034976,2]
[424150331,1780612259000,-1481.2378076,0.00034976,2]
[424150332,1780612259000,-719.04747942,0.00034976,2]
[424150333,1780612259000,-200.0,0.00034976,2]
[424150338,1780612259000,-151.0,0.00034978,2]
[424150339,1780612259000,-1038.4812984,0.00034985,7]
[424150345,1780612259000,-3166.4080724,0.00035,4]
[424150347,1780612259000,-218.75970309,0.00035,120]
[424150346,1780612259000,-2895.57662678,0.00035,120]
[424150344,1780612259000,-43056.18932442,0.00035,5]
[424150335,1780612259000,-500.0,0.00034976,2]
[424150354,1780612259000,-3905.5564,0.00035033,2]
[424150353,1780612259000,-194.57,0.0003503,30]
[424150362,1780612259000,-8280.72792878,0.0003524,2]
[424150355,1780612259000,-5614.8027,0.00035033,2]
[424150341,1780612259000,-375.49,0.00035,7]
[424150350,1780612259000,-526.0,0.00035,5]
[424150356,1780612259000,-889.17,0.00035146,7]
[424150352,1780612259000,-200.0,0.00035,120]
[424150340,1780612259000,-181.29,0.00035,2]
[424150349,1780612259000,-152290.50674097,0.00035,2]
[424150342,1780612259000,-375.49,0.00035,3]
[424150348,1780612259000,-2798.13148237,0.00035,10]
[424150343,1780612259000,-153.63206789,0.00035,30]
[424150351,1780612259000,-419.87027685,0.00035,120]
[424150435,1780612260000,-3905.5564,0.00035781,2]
[424150428,1780612260000,-5614.8027,0.00035656,2]
[424150430,1780612260000,-151.0,0.00035661,14]
[424150440,1780612260000,-889.17,0.00035831,7]
[424150439,1780612260000,-150.0,0.000358,120]
[424150421,1780612260000,-2000.0,0.00035616,30]
[424150426,1780612260000,-4932.12,0.0003564,2]
[424150425,1780612260000,-780.0,0.0003562,3]
[424150427,1780612260000,-3905.5564,0.00035656,2]
[424150415,1780612260000,-205.9573132,0.00035537,2]
[424150420,1780612260000,-3600.5512708,0.0003561,2]
[424150431,1780612260000,-163.390817,0.00035661,14]
[424150429,1780612260000,-151.0,0.00035661,14]
[424150436,1780612260000,-5614.8027,0.00035781,2]
[424150445,1780612260000,-200.0,0.00035885,5]
[424150432,1780612260000,-150.0,0.000357,120]
[424150437,1780612260000,-803.528,0.00035781,2]
[424150433,1780612260000,-150.0,0.0003575,120]
[424150438,1780612260000,-156.587,0.00035797,2]
[424150441,1780612260000,-200.0,0.00035843,5]
[424150442,1780612260000,-150.0,0.0003585,120]
[424150447,1780612260000,-150.0,0.00035899,2]
[424150448,1780612260000,-194.58,0.000359,98]
[424150446,1780612260000,-200.0,0.00035885,5]
[424150449,1780612260000,-3905.5564,0.00035906,2]
[424150444,1780612260000,-200.0,0.00035877,5]
[424150450,1780612260000,-5614.8027,0.00035906,2]
[424150443,1780612260000,-200.0,0.00035858,5]
[424150434,1780612260000,-150.0,0.00035753,2]
[424150419,1780612260000,-1004.0,0.00035589,120]
[424150452,1780612260000,-151.0,0.0003592,30]
[424150424,1780612260000,-151.0,0.00035616,2]
[424150397,1780612260000,-1817.868299,0.00035481,30]
[424150392,1780612260000,-332.0,0.00035401,30]
[424150393,1780612260000,-3905.5564,0.00035407,2]
[424150394,1780612260000,-186.04151345,0.00035407,11]
[424150396,1780612260000,-194.57,0.0003546,69]
[424150400,1780612260000,-1817.868299,0.00035481,30]
[424150398,1780612260000,-1817.868299,0.00035481,30]
[424150395,1780612260000,-5614.8027,0.00035407,2]
[424150399,1780612260000,-1817.868299,0.00035481,30]
[424150391,1780612260000,-995.0,0.00035401,30]
[424150413,1780612260000,-3905.5564,0.00035532,2]
[424150412,1780612260000,-206.87657143,0.00035524,2]
[424150407,1780612260000,-1536.04360648,0.00035524,2]
[424150422,1780612260000,-614.22038512,0.00035616,120]
[424150406,1780612260000,-799.54513344,0.00035524,2]
[424150403,1780612260000,-16992.64812045,0.000355,30]
[424150404,1780612260000,-301.0006985,0.00035524,2]
[424150411,1780612260000,-500.0,0.00035524,2]
[424150401,1780612260000,-575.56,0.000355,14]
[424150405,1780612260000,-187.78006524,0.00035524,2]
[424150402,1780612260000,-200.0,0.000355,14]
[424150410,1780612260000,-200.0,0.00035524,2]
[424150408,1780612260000,-745.65223615,0.00035524,2]
[424150414,1780612260000,-5614.8027,0.00035532,2]
[424150416,1780612260000,-1688.67,0.00035578,7]
[424150418,1780612260000,-1825.5,0.00035589,120]
[424150423,1780612260000,-1000.0,0.00035616,120]
[424150417,1780612260000,-1825.5,0.00035589,120]
[424150409,1780612260000,-200.0,0.00035524,2]
[424150451,1780612260000,-281.590561,0.0003592,30]
[424150491,1780612260000,-557.281833,0.00035962,30]
[424150459,1780612260000,-151.0,0.0003592,30]
[424150480,1780612260000,-268.061888,0.00035962,30]
[424150490,1780612260000,-834.811567,0.00035962,7]
[424150482,1780612260000,-1541.829306,0.00035962,28]
[424150507,1780612260000,-3905.5564,0.0003603,2]
[424150492,1780612260000,-151.0,0.00035962,30]
[424150493,1780612260000,-557.281833,0.00035962,30]
[424150501,1780612260000,-605.16,0.00035972,5]
[424150495,1780612260000,-557.281825,0.00035962,30]
[424150498,1780612260000,-749.673451,0.00035962,30]
[424150499,1780612260000,-749.673459,0.00035962,30]
[424150502,1780612260000,-864.52,0.00035972,5]